[Event "86th Tata Steel Tienkamp 2024"]
[Site "Wijk aan Zee"]
[Date "2024.01.22"]
[Round "4.5"]
[White "Bekker, Stefan"]
[Black "Abdulla, Murad"]
[Result "1/2-1/2"]
[ECO "B06"]
[WhiteElo "2274"]
[BlackElo "2332"]
[Annotator "RC"]
[PlyCount "63"]
[EventDate "2024.01.02"]
[EventType "tourn"]
[EventCountry "NED"]
[SourceTitle "playchess.com"]
[Source "ChessBase"]
[SourceQuality "1"]
[TimeControl "40/6000+30:20/3000+30:900+30"]

1. e4 {[%emt 0:10:07]} g6 {[%emt 0:13:30]} 2. d4 {[%emt 0:00:42]} Bg7 {[%emt 0:00:07]} 3. Nc3 {[%emt 0:00:22]} a6 {[%emt 0:00:04]} 4. Be3 {[%emt 0:06:10]} b5 {[%emt 0:02:39]} 5. f3 {[%emt 0:01:35]} Bb7 {[%emt 0:01:02]} 6. Nh3 {[%emt 0:06:01]} d6 {[%emt 0:01:53]} 7. Qd2 {[%emt 0:01:49]} Nd7 {[%emt 0:00:44]} 8. a4 {[%emt 0:06:08]} b4 {[%emt 0:19:32]} 9. Nd1 {[%emt 0:00:25]} a5 {[%emt 0:01:04]} 10. Bb5 {[%emt 0:00:53]} c6 {[%emt 0:03:49]} 11. Be2 {[%emt 0:00:54]} Qb6 {[%emt 0:10:59]} 12. O-O {[%emt 0:21:57]} Ngf6 {[%emt 0:03:11]} 13. Ndf2 {[%emt 0:00:45]} O-O {[%emt 0:05:57]} 14. Nd3 {[%emt 0:20:32]} c5 {[%emt 0:09:43]} 15. d5 {[%emt 0:02:34]} e6 {[%emt 0:01:37]} 16. dxe6 {[%emt 0:11:59]} fxe6 {[%emt 0:00:18]} 17. Bh6 {[%emt 0:06:52]} c4+ {[%emt 0:05:51]} 18. Ndf2 {[%emt 0:01:20]} d5 {[%emt 0:01:23]} 19. Bxg7 {[%emt 0:00:12]} Kxg7 {[%emt 0:00:04]} 20. exd5 {[%emt 0:01:17]} exd5 {[%emt 0:00:20]} 21. Rfe1 {[%emt 0:00:50]} Nc5 {[%emt 0:10:31]} 22. Bf1 {[%emt 0:00:30]} Rfe8 {[%emt 0:10:18]} 23. Nf4 {[%emt 0:00:07]} g5 {[%emt 0:00:20]} 24. Ne2 {[%emt 0:01:38]} Ne6 {[%emt 0:04:11]} 25. Ng3 {[%emt 0:01:06]} h6 {[%emt 0:00:04]} 26. h4 {[%emt 0:00:32]} Nf4 {[%emt 0:00:33]} 27. Nf5+ {[%emt 0:02:43]} Kg6 {[%emt 0:00:29]} 28. Ne7+ {[%emt 0:02:04]} Kf7 {[%emt 0:00:37]} 29. Nf5 {[%emt 0:00:09]} Kg6 {[%emt 0:01:00]} 30. Ne7+ {[%emt 0:00:16]} Kf7 {[%emt 0:01:56]} 31. Nf5 {[%emt 0:02:08]} Kg6 {[%emt 0:01:06]} 32. Ne7+ {[%emt 0:00:26]} 1/2-1/2

[Event "86th Tata Steel Tienkamp 2024"]
[Site "Wijk aan Zee"]
[Date "2024.01.23"]
[Round "5.1"]
[White "Pijpers, Arthur"]
[Black "Pastar, Slaven"]
[Result "1/2-1/2"]
[ECO "C43"]
[WhiteElo "2441"]
[BlackElo "2343"]
[Annotator "RC"]
[PlyCount "53"]
[EventDate "2024.01.02"]
[EventType "tourn"]
[EventCountry "NED"]
[SourceTitle "playchess.com"]
[Source "ChessBase"]
[SourceQuality "1"]
[TimeControl "40/6000+30:20/3000+30:900+30"]

1. e4 {[%emt 0:10:03]} e5 {[%emt 0:10:11]} 2. Nf3 {[%emt 0:00:05]} Nf6 {[%emt 0:00:08]} 3. d4 {[%emt 0:00:05]} Nxe4 {[%emt 0:00:39]} 4. Bd3 {[%emt 0:00:06]} Nc6 {[%emt 0:00:46]} 5. d5 {[%emt 0:00:24]} Nf6 {[%emt 0:01:00]} 6. Nc3 {[%emt 0:00:14]} Nb4 {[%emt 0:09:16]} 7. Nxe5 {[%emt 0:00:24]} Be7 {[%emt 0:10:14]} 8. Be2 {[%emt 0:09:54]} O-O {[%emt 0:03:10]} 9. Nc4 {[%emt 0:14:49]} d6 {[%emt 0:04:53]} 10. Bf4 {[%emt 0:02:14]} c6 {[%emt 0:13:52]} 11. dxc6 {[%emt 0:11:38]} bxc6 {[%emt 0:01:29]} 12. Nxd6 {[%emt 0:00:31]} Bxd6 {[%emt 0:26:22]} 13. Bxd6 {[%emt 0:00:06]} Nxc2+ {[%emt 0:00:03]} 14. Qxc2 {[%emt 0:00:05]} Qxd6 {[%emt 0:00:02]} 15. O-O {[%emt 0:00:07]} Be6 {[%emt 0:03:03]} 16. Bf3 {[%emt 0:03:56]} Rab8 {[%emt 0:01:27]} 17. b3 {[%emt 0:09:10]} c5 {[%emt 0:03:02]} 18. Rad1 {[%emt 0:02:49]} Qa6 {[%emt 0:05:13]} 19. Nd5 {[%emt 0:03:45]} Nxd5 {[%emt 0:00:34]} 20. Bxd5 {[%emt 0:00:05]} Bxd5 {[%emt 0:01:37]} 21. Rxd5 {[%emt 0:00:13]} Rfc8 {[%emt 0:00:38]} 22. Rc1 {[%emt 0:17:33]} c4 {[%emt 0:03:15]} 23. bxc4 {[%emt 0:12:31]} Rxc4 {[%emt 0:00:46]} 24. Rcd1 {[%emt 0:00:07]} Rf8 {[%emt 0:03:42]} 25. Qd2 {[%emt 0:04:59]} g6 {[%emt 0:01:38]} 26. Ra5 {[%emt 0:00:54]} Qb6 {[%emt 0:00:55]} 27. Ra3 {[%emt 0:01:31]} 1/2-1/2

[Event "86th Tata Steel Tienkamp 2024"]
[Site "Wijk aan Zee"]
[Date "2024.01.23"]
[Round "5.2"]
[White "Van Foreest, Machteld"]
[Black "Baselmans, Luuk"]
[Result "1/2-1/2"]
[ECO "B22"]
[WhiteElo "2363"]
[BlackElo "2323"]
[Annotator "RC"]
[PlyCount "67"]
[EventDate "2024.01.02"]
[EventType "tourn"]
[EventCountry "NED"]
[SourceTitle "playchess.com"]
[Source "ChessBase"]
[SourceQuality "1"]
[TimeControl "40/6000+30:20/3000+30:900+30"]

1. e4 {[%emt 0:13:37]} c5 {[%emt 0:10:10]} 2. c3 {[%emt 0:00:49]} Nf6 {[%emt 0:00:34]} 3. e5 {[%emt 0:00:04]} Nd5 {[%emt 0:00:06]} 4. Bc4 {[%emt 0:00:03]} Nb6 {[%emt 0:02:01]} 5. Bb3 {[%emt 0:00:11]} Nc6 {[%emt 0:06:24]} 6. Nf3 {[%emt 0:06:24]} d5 {[%emt 0:00:22]} 7. exd6 {[%emt 0:00:35]} Qxd6 {[%emt 0:00:10]} 8. O-O {[%emt 0:00:30]} Be6 {[%emt 0:00:32]} 9. Na3 {[%emt 0:05:36]} Bxb3 {[%emt 0:07:51]} 10. Qxb3 {[%emt 0:03:15]} Qd3 {[%emt 0:18:15]} 11. Re1 {[%emt 0:09:23]} e6 {[%emt 0:04:42]} 12. Nb5 {[%emt 0:14:09]} c4 {[%emt 0:09:17]} 13. Qd1 {[%emt 0:03:58]} Rc8 {[%emt 0:06:20]} 14. Nfd4 {[%emt 0:08:20]} Nxd4 {[%emt 0:03:49]} 15. Nxd4 {[%emt 0:06:19]} Bd6 {[%emt 0:05:56]} 16. Qf3 {[%emt 0:09:51]} Qxf3 {[%emt 0:02:28]} 17. Nxf3 {[%emt 0:01:15]} O-O {[%emt 0:00:14]} 18. Rd1 {[%emt 0:02:31]} Rfd8 {[%emt 0:00:25]} 19. Kf1 {[%emt 0:00:30]} e5 {[%emt 0:02:02]} 20. Re1 {[%emt 0:05:43]} Re8 {[%emt 0:02:35]} 21. b3 {[%emt 0:00:37]} e4 {[%emt 0:01:58]} 22. Nd4 {[%emt 0:00:27]} Bc5 {[%emt 0:05:57]} 23. Nc2 {[%emt 0:00:58]} Rcd8 {[%emt 0:00:23]} 24. Ke2 {[%emt 0:01:58]} Rd5 {[%emt 0:08:10]} 25. Ba3 {[%emt 0:00:43]} Bxa3 {[%emt 0:00:55]} 26. Nxa3 {[%emt 0:00:02]} Red8 {[%emt 0:00:20]} 27. Red1 {[%emt 0:01:14]} Rc8 {[%emt 0:02:16]} 28. Nxc4 {[%emt 0:01:56]} Nxc4 {[%emt 0:00:07]} 29. bxc4 {[%emt 0:00:03]} Rxc4 {[%emt 0:00:09]} 30. Rab1 {[%emt 0:00:10]} b6 {[%emt 0:00:23]} 31. Rb4 {[%emt 0:00:17]} Rxb4 {[%emt 0:01:28]} 32. cxb4 {[%emt 0:00:05]} Rd4 {[%emt 0:01:07]} 33. Rc1 {[%emt 0:00:36]} g6 {[%emt 0:00:27]} 34. Rc7 {[%emt 0:00:58]} 1/2-1/2

[Event "86th Tata Steel Tienkamp 2024"]
[Site "Wijk aan Zee"]
[Date "2024.01.23"]
[Round "5.3"]
[White "Zwirs, Nico"]
[Black "Bekker, Stefan"]
[Result "1-0"]
[ECO "B90"]
[WhiteElo "2476"]
[BlackElo "2274"]
[Annotator "RC"]
[PlyCount "141"]
[EventDate "2024.01.02"]
[EventType "tourn"]
[EventCountry "NED"]
[SourceTitle "playchess.com"]
[Source "ChessBase"]
[SourceQuality "1"]
[TimeControl "40/6000+30:20/3000+30:900+30"]

1. e4 {[%emt 0:10:01]} c5 {[%emt 0:10:05]} 2. Nf3 {[%emt 0:00:03]} d6 {[%emt 0:00:05]} 3. d4 {[%emt 0:00:02]} cxd4 {[%emt 0:00:06]} 4. Nxd4 {[%emt 0:00:04]} Nf6 {[%emt 0:00:06]} 5. Nc3 {[%emt 0:00:05]} a6 {[%emt 0:00:06]} 6. Be3 {[%emt 0:00:35]} e5 {[%emt 0:00:08]} 7. Nb3 {[%emt 0:00:06]} Be6 {[%emt 0:00:05]} 8. h3 {[%emt 0:09:12]} Nbd7 {[%emt 0:00:57]} 9. g4 {[%emt 0:04:20]} h6 {[%emt 0:00:39]} 10. Qd2 {[%emt 0:03:16]} Be7 {[%emt 0:10:11]} 11. O-O-O {[%emt 0:04:53]} b5 {[%emt 0:09:32]} 12. f4 {[%emt 0:01:07]} b4 {[%emt 0:19:59]} 13. Nd5 {[%emt 0:00:34]} Nxe4 {[%emt 0:04:00]} 14. Qxb4 {[%emt 0:00:29]} Bxd5 {[%emt 0:05:26]} 15. Rxd5 {[%emt 0:00:24]} Nef6 {[%emt 0:02:50]} 16. Rd1 {[%emt 0:08:47]} a5 {[%emt 0:01:40]} 17. Qa4 {[%emt 0:02:47]} exf4 {[%emt 0:01:28]} 18. Bxf4 {[%emt 0:04:49]} O-O {[%emt 0:00:19]} 19. Bg2 {[%emt 0:07:31]} Nb6 {[%emt 0:04:07]} 20. Qb5 {[%emt 0:04:11]} d5 {[%emt 0:01:41]} 21. Nxa5 {[%emt 0:14:37]} Bd6 {[%emt 0:01:41]} 22. Be3 {[%emt 0:03:21]} Na4 {[%emt 0:05:35]} 23. Bd2 {[%emt 0:24:51]} Nxb2 {[%emt 0:04:49]} 24. Qxb2 {[%emt 0:00:09]} Rxa5 {[%emt 0:00:07]} 25. Bxa5 {[%emt 0:00:42]} Qxa5 {[%emt 0:00:10]} 26. Rd3 {[%emt 0:00:20]} d4 {[%emt 0:07:06]} 27. Rb3 {[%emt 0:03:20]} Bf4+ {[%emt 0:02:17]} 28. Kb1 {[%emt 0:00:07]} Qd2 {[%emt 0:05:56]} 29. Bf3 {[%emt 0:00:09]} Be5 {[%emt 0:01:11]} 30. Rd1 {[%emt 0:01:44]} Qh2 {[%emt 0:00:18]} 31. c3 {[%emt 0:01:05]} Qxh3 {[%emt 0:02:09]} 32. cxd4 {[%emt 0:00:01]} Bd6 {[%emt 0:00:34]} 33. a4 {[%emt 0:01:28]} Bc7 {[%emt 0:01:11]} 34. Qg2 {[%emt 0:01:24]} Qh4 {[%emt 0:00:11]} 35. Qc2 {[%emt 0:00:38]} Qg3 {[%emt 0:01:08]} 36. Ka2 {[%emt 0:00:23]} Qf4 {[%emt 0:02:37]} 37. Qc1 {[%emt 0:00:38]} Qh2+ {[%emt 0:00:59]} 38. Qd2 {[%emt 0:00:21]} Qd6 {[%emt 0:00:46]} 39. Qb4 {[%emt 0:00:11]} Qa6 {[%emt 0:04:32]} 40. Qb5 {[%emt 0:00:22]} Qa7 {[%emt 0:00:42]} 41. Rc1 {[%emt 0:29:45]} Bd8 {[%emt 0:22:32]} 42. Rc4 {[%emt 0:02:53]} Nh7 {[%emt 0:04:27]} 43. Qc5 {[%emt 0:02:32]} Qa6 {[%emt 0:05:18]} 44. Bb7 {[%emt 0:05:49]} Qe6 {[%emt 0:00:15]} 45. Rc2 {[%emt 0:01:38]} Qxg4 {[%emt 0:14:51]} 46. a5 {[%emt 0:06:49]} Bxa5 {[%emt 0:00:21]} 47. Rg2 {[%emt 0:01:24]} Qd7 {[%emt 0:01:30]} 48. Qxa5 {[%emt 0:00:25]} Qxd4 {[%emt 0:00:08]} 49. Qc3 {[%emt 0:00:07]} Rd8 {[%emt 0:02:09]} 50. Qxd4 {[%emt 0:02:24]} Rxd4 {[%emt 0:00:06]} 51. Kb2 {[%emt 0:00:10]} Ng5 {[%emt 0:00:54]} 52. Rb5 {[%emt 0:00:46]} g6 {[%emt 0:01:01]} 53. Bd5 {[%emt 0:00:41]} Rf4 {[%emt 0:00:14]} 54. Kc3 {[%emt 0:00:50]} Kg7 {[%emt 0:00:58]} 55. Kd3 {[%emt 0:00:35]} Rf5 {[%emt 0:02:36]} 56. Bc4 {[%emt 0:00:37]} Rf3+ {[%emt 0:00:34]} 57. Ke2 {[%emt 0:00:47]} Rc3 {[%emt 0:01:15]} 58. Rg4 {[%emt 0:00:22]} Rc2+ {[%emt 0:00:37]} 59. Ke3 {[%emt 0:01:11]} Rc3+ {[%emt 0:00:02]} 60. Ke2 {[%emt 0:00:06]} Rc2+ {[%emt 0:00:05]} 61. Ke1 {[%emt 0:15:17]} Nf3+ {[%emt 0:17:35]} 62. Kd1 {[%emt 0:00:05]} Rd2+ {[%emt 0:00:18]} 63. Kc1 {[%emt 0:00:04]} Rd7 {[%emt 0:00:15]} 64. Rf4 {[%emt 0:01:11]} Nd4 {[%emt 0:01:26]} 65. Rc5 {[%emt 0:00:32]} Nf5 {[%emt 0:00:16]} 66. Be2 {[%emt 0:00:54]} Nd4 {[%emt 0:00:12]} 67. Bc4 {[%emt 0:00:13]} Nf5 {[%emt 0:00:03]} 68. Bb5 {[%emt 0:00:45]} Re7 {[%emt 0:00:52]} 69. Bd3 {[%emt 0:00:27]} Ng3 {[%emt 0:01:02]} 70. Rg4 {[%emt 0:00:50]} Nh5 {[%emt 0:00:23]} 71. Rxh5 {[%emt 0:00:08]} 1-0

[Event "86th Tata Steel Tienkamp 2024"]
[Site "Wijk aan Zee"]
[Date "2024.01.23"]
[Round "5.4"]
[White "Holzke, Frank"]
[Black "De Winter, Arthur"]
[Result "1-0"]
[ECO "E66"]
[WhiteElo "2460"]
[BlackElo "2409"]
[Annotator "RC"]
[PlyCount "51"]
[EventDate "2024.01.02"]
[EventType "tourn"]
[EventCountry "NED"]
[SourceTitle "playchess.com"]
[Source "ChessBase"]
[SourceQuality "1"]
[TimeControl "40/6000+30:20/3000+30:900+30"]

1. d4 {[%emt 0:10:07]} Nf6 {[%emt 0:10:05]} 2. c4 {[%emt 0:00:09]} g6 {[%emt 0:00:06]} 3. Nc3 {[%emt 0:00:09]} Bg7 {[%emt 0:00:04]} 4. Nf3 {[%emt 0:00:23]} O-O {[%emt 0:00:07]} 5. g3 {[%emt 0:00:10]} d6 {[%emt 0:00:47]} 6. Bg2 {[%emt 0:00:10]} c5 {[%emt 0:10:53]} 7. O-O {[%emt 0:01:15]} Nc6 {[%emt 0:00:04]} 8. d5 {[%emt 0:01:02]} Na5 {[%emt 0:00:04]} 9. Nd2 {[%emt 0:00:13]} e6 {[%emt 0:00:05]} 10. Qc2 {[%emt 0:01:26]} exd5 {[%emt 0:15:37]} 11. cxd5 {[%emt 0:00:37]} Bf5 {[%emt 0:02:09]} 12. e4 {[%emt 0:00:40]} Bd7 {[%emt 0:00:07]} 13. b3 {[%emt 0:01:52]} b5 {[%emt 0:03:42]} 14. Bb2 {[%emt 0:00:26]} Re8 {[%emt 0:02:29]} 15. Rae1 {[%emt 0:04:10]} Rc8 {[%emt 0:21:00]} 16. Nd1 {[%emt 0:02:34]} Nb7 {[%emt 0:09:19]} 17. Bc3 {[%emt 0:04:09]} a5 {[%emt 0:01:53]} 18. Ne3 {[%emt 0:06:48]} a4 {[%emt 0:04:29]} 19. f4 {[%emt 0:02:44]} b4 {[%emt 0:06:56]} 20. Bb2 {[%emt 0:01:11]} Bb5 {[%emt 0:01:08]} 21. Ndc4 {[%emt 0:02:30]} a3 {[%emt 0:07:50]} 22. Ba1 {[%emt 0:01:09]} Nh5 {[%emt 0:01:01]} 23. e5 {[%emt 0:02:18]} dxe5 {[%emt 0:00:43]} 24. fxe5 {[%emt 0:00:13]} Qg5 {[%emt 0:00:13]} 25. Qf2 {[%emt 0:06:40]} Nd8 {[%emt 0:00:20]} 26. g4 {[%emt 0:01:22]} 1-0

[Event "86th Tata Steel Tienkamp 2024"]
[Site "Wijk aan Zee"]
[Date "2024.01.23"]
[Round "5.5"]
[White "Abdulla, Murad"]
[Black "Niermann, Tristan"]
[Result "1-0"]
[ECO "B32"]
[WhiteElo "2332"]
[BlackElo "2413"]
[Annotator "RC"]
[PlyCount "87"]
[EventDate "2024.01.02"]
[EventType "tourn"]
[EventCountry "NED"]
[SourceTitle "playchess.com"]
[Source "ChessBase"]
[SourceQuality "1"]
[TimeControl "40/6000+30:20/3000+30:900+30"]

1. e4 {[%emt 0:14:19]} c5 {[%emt 0:10:06]} 2. Nf3 {[%emt 0:00:44]} Nc6 {[%emt 0:00:05]} 3. d4 {[%emt 0:00:29]} cxd4 {[%emt 0:00:14]} 4. Nxd4 {[%emt 0:00:08]} e5 {[%emt 0:00:04]} 5. Nb5 {[%emt 0:01:35]} d6 {[%emt 0:00:06]} 6. c4 {[%emt 0:03:13]} Be6 {[%emt 0:00:54]} 7. N1c3 {[%emt 0:05:17]} a6 {[%emt 0:00:11]} 8. Na3 {[%emt 0:00:07]} g6 {[%emt 0:00:28]} 9. Be3 {[%emt 0:07:32]} Nf6 {[%emt 0:00:53]} 10. h3 {[%emt 0:03:40]} Bg7 {[%emt 0:02:23]} 11. Be2 {[%emt 0:03:31]} O-O {[%emt 0:00:40]} 12. Nc2 {[%emt 0:00:50]} Rc8 {[%emt 0:00:22]} 13. b3 {[%emt 0:07:09]} b5 {[%emt 0:01:42]} 14. cxb5 {[%emt 0:13:02]} axb5 {[%emt 0:01:02]} 15. Bf3 {[%emt 0:02:54]} Ne7 {[%emt 0:10:34]} 16. Bd2 {[%emt 0:10:37]} d5 {[%emt 0:01:18]} 17. exd5 {[%emt 0:01:16]} Nexd5 {[%emt 0:03:19]} 18. Nxb5 {[%emt 0:02:09]} e4 {[%emt 0:07:58]} 19. Be2 {[%emt 0:00:12]} e3 {[%emt 0:03:03]} 20. Nxe3 {[%emt 0:05:18]} Ne4 {[%emt 0:03:29]} 21. Rb1 {[%emt 0:00:21]} Qh4 {[%emt 0:04:19]} 22. O-O {[%emt 0:01:17]} Rfd8 {[%emt 0:00:07]} 23. Qe1 {[%emt 0:05:56]} Nxd2 {[%emt 0:04:21]} 24. Qxd2 {[%emt 0:00:13]} Nc3 {[%emt 0:01:12]} 25. Qe1 {[%emt 0:01:03]} Nxb1 {[%emt 0:04:14]} 26. Qxb1 {[%emt 0:00:11]} Rd2 {[%emt 0:01:06]} 27. Bc4 {[%emt 0:02:44]} Bxh3 {[%emt 0:04:21]} 28. Qe1 {[%emt 0:07:58]} Rd7 {[%emt 0:31:22]} 29. gxh3 {[%emt 0:00:41]} Re8 {[%emt 0:00:15]} 30. Ng2 {[%emt 0:02:55]} Qd8 {[%emt 0:01:24]} 31. Qc1 {[%emt 0:03:23]} Rd2 {[%emt 0:01:52]} 32. Nc3 {[%emt 0:00:56]} Qd4 {[%emt 0:02:52]} 33. Nd5 {[%emt 0:03:09]} Rxa2 {[%emt 0:02:12]} 34. Qf4 {[%emt 0:00:10]} Re4 {[%emt 0:01:49]} 35. Qf3 {[%emt 0:02:06]} Ra7 {[%emt 0:03:37]} 36. Nge3 {[%emt 0:00:31]} h5 {[%emt 0:01:53]} 37. Rd1 {[%emt 0:00:37]} Ra1 {[%emt 0:00:57]} 38. Rxa1 {[%emt 0:00:41]} Qxa1+ {[%emt 0:00:05]} 39. Kg2 {[%emt 0:00:06]} Qe5 {[%emt 0:00:48]} 40. Qg3 {[%emt 0:00:54]} Qe8 {[%emt 0:01:53]} 41. Nf6+ {[%emt 0:28:16]} Bxf6 {[%emt 0:20:26]} 42. Qxg6+ {[%emt 0:00:15]} Kf8 {[%emt 0:02:48]} 43. Qxf6 {[%emt 0:01:57]} Qd7 {[%emt 0:00:05]} 44. Nf5 {[%emt 0:01:03]} 1-0

[Event "86th Tata Steel Tienkamp 2024"]
[Site "Wijk aan Zee"]
[Date "2024.01.24"]
[Round "6.1"]
[White "Zwirs, Nico"]
[Black "Holzke, Frank"]
[Result "1/2-1/2"]
[ECO "C55"]
[WhiteElo "2476"]
[BlackElo "2460"]
[Annotator "TA"]
[PlyCount "115"]
[EventDate "2024.01.02"]
[EventType "tourn"]
[EventCountry "NED"]
[SourceTitle "playchess.com"]
[Source "ChessBase"]
[SourceQuality "1"]
[TimeControl "40/6000+30:20/3000+30:900+30"]

{[%evp 31,115,53,60,51,60,55,59,12,43,0,27,0,58,57,95,10,0,0,0,0,52,42,33,31,39,37,38,46,44,10,10,10,10,11,30,30,63,39,53,11,11,9,10,11,16,0,16,0,9,9,11,11,12,11,11,11,11,11,11,23,37,14,96,8,96,0,8,8,89,0,96,96,96,96,96,96,96,0,0,0,96,96,96,0,0,0]} 1. e4 {[%emt 0:10:01]} e5 {[%emt 0:10:16]} 2. Nf3 {[%emt 0:00:04]} Nc6 {[%emt 0:00:08]} 3. Bc4 {[%emt 0:00:08]} Nf6 {[%emt 0:00:09]} 4. d3 {[%emt 0:00:08]} Be7 {[%emt 0:00:46]} 5. O-O {[%emt 0:00:11]} O-O {[%emt 0:00:13]} 6. Re1 {[%emt 0:00:04]} d6 {[%emt 0:00:24]} 7. a4 {[%emt 0:00:06]} Be6 {[%emt 0:00:19]} 8. Nc3 {[%emt 0:03:59]} Bg4 {[%emt 0:03:28]} 9. h3 {[%emt 0:04:44]} Bxf3 {[%emt 0:00:24]} 10. Qxf3 {[%emt 0:00:14]} Nd4 {[%emt 0:00:09]} 11. Qd1 {[%emt 0:00:26]} c6 {[%emt 0:00:26]} 12. Ba2 {[%emt 0:11:05]} a5 {[%emt 0:04:26]} 13. Ne2 {[%emt 0:01:39]} d5 {[%emt 0:03:47]} 14. Ng3 {[%emt 0:20:52]} Qc7 {[%emt 0:10:43]} 15. c3 {[%emt 0:08:25]} Ne6 {[%emt 0:00:21]} 16. Nf5 {[%emt 0:02:34]} Rfe8 {[%emt 0:03:48]} 17. Qf3 {[%emt 0:14:24]} Rad8 {[%emt 0:01:26]} 18. Qg3 {[%emt 0:06:07]} Nh5 {[%emt 0:04:45]} 19. Qg4 {[%emt 0:03:46]} (19. Nh6+ $14 Kf8 20. Qf3) 19... Nf6 {[%emt 0:00:44]} 20. Qg3 {[%emt 0:00:22]} Nh5 {[%emt 0:00:11]} 21. Qf3 {[%emt 0:03:12]} Nhf4 {[%emt 0:04:15]} (21... Nf6 $1 $11) 22. exd5 $14 {[%emt 0:10:51]} cxd5 {[%emt 0:02:32] [#]} 23. Nxe7+ {[%emt 0:02:08]} ({White should try} 23. h4 $1 $16) 23... Rxe7 $11 {[%emt 0:00:20]} 24. Bd2 {[%emt 0:01:02]} Qd6 {[%emt 0:06:54]} 25. h4 {[%emt 0:00:56]} e4 {[%emt 0:08:37]} (25... d4 $11) 26. dxe4 {[%emt 0:00:29]} dxe4 {[%emt 0:00:10]} 27. Bxf4 {[%emt 0:00:05]} exf3 {[%emt 0:00:39]} 28. Bxd6 {[%emt 0:00:02]} Rxd6 {[%emt 0:00:10]} 29. gxf3 {[%emt 0:01:03]} Kf8 {[%emt 0:02:50]} 30. Bxe6 {[%emt 0:02:06]} Rexe6 {[%emt 0:01:07]} 31. Rxe6 {[%emt 0:00:06]} Rxe6 {[%emt 0:02:46]} 32. Rd1 {[%emt 0:00:06]} Re2 {[%emt 0:01:15]} 33. b4 {[%emt 0:01:35]} Rc2 {[%emt 0:03:32]} 34. Rd8+ {[%emt 0:01:36]} Ke7 {[%emt 0:00:07]} 35. Rb8 {[%emt 0:00:02]} Rxc3 {[%emt 0:00:14]} 36. Rxb7+ {[%emt 0:00:05]} Kf6 {[%emt 0:01:39]} 37. Rb6+ {[%emt 0:00:48]} Ke7 $1 {[%emt 0:00:22]} 38. Rb7+ {[%emt 0:00:11]} Kf6 {[%emt 0:00:09]} 39. Rb6+ {[%emt 0:01:25]} Ke7 $1 {[%emt 0:00:08]} 40. bxa5 {[%emt 0:00:11]} Rc4 {[%emt 0:00:37]} 41. h5 {[%emt 0:23:59]} Rxa4 {[%emt 0:20:19]} 42. a6 {[%emt 0:00:46]} h6 {[%emt 0:05:42]} 43. Kg2 {[%emt 0:05:12]} Ra5 {[%emt 0:02:19]} 44. Rb7+ {[%emt 0:00:11]} Kf6 {[%emt 0:00:24]} 45. a7 {[%emt 0:00:05]} g6 {[%emt 0:00:35]} 46. hxg6 {[%emt 0:07:02]} fxg6 {[%emt 0:00:47]} (46... Kxg6 $11 47. Kg3 Ra4) 47. Kf1 {[%emt 0:02:35]} (47. Kg3 $16) 47... h5 {[%emt 0:04:16]} (47... Ra1+ $1 $11 48. Ke2 h5) 48. Ke2 {[%emt 0:01:13]} (48. Kg2 $16) 48... Ra3 {[%emt 0:01:23]} 49. Rh7 {[%emt 0:00:59]} g5 {[%emt 0:01:23]} (49... Ra1 $11 {keeps the balance.}) 50. Rc7 {[%emt 0:01:49]} ({Much weaker is} 50. Rxh5 Kg6 51. Rh8 Rxa7 $11) (50. Kf1 $1 $16) 50... Kg6 {[%emt 0:03:31]} (50... Ra1 $11) 51. Kf1 $16 {[%emt 0:04:05]} Ra1+ {[%emt 0:00:42]} 52. Kg2 {[%emt 0:00:05]} Kh6 {[%emt 0:01:08]} 53. Rb7 {[%emt 0:03:54]} Kg6 {[%emt 0:00:12]} 54. Rb6+ {[%emt 0:00:03]} ({White should play} 54. Rd7 $16) 54... Kh7 $11 {[%emt 0:00:31]} 55. Rb7+ {[%emt 0:01:25]} (55. f4 $11 gxf4 56. Kf3) 55... Kg6 $16 {[%emt 0:00:09]} 56. Kg3 {[%emt 0:00:09]} Rg1+ {[%emt 0:00:17]} 57. Kh3 {[%emt 0:00:14]} ({Better is} 57. Kh2 $16 Ra1 58. Kg2) 57... Rh1+ $1 $11 {[%emt 0:00:09]} 58. Kg2 {[%emt 0:01:31]} 1/2-1/2